[Event "10th Floripa Open 2024"]
[Site "Florianopolis"]
[Date "2024.01.21"]
[Round "1.8"]
[White "Lopes, Leonardo Borges"]
[Black "Haldorsen, Benjamin"]
[Result "0-1"]
[ECO "B40"]
[WhiteElo "1694"]
[BlackElo "2427"]
[Annotator "RC"]
[PlyCount "84"]
[EventDate "2024.01.10"]
[EventType "swiss"]
[EventCountry "BRA"]
[SourceTitle "playchess.com"]
[Source "ChessBase"]
[SourceQuality "1"]
[TimeControl "5400+30"]

1. e4 {[%emt 0:00:03]} c5 {[%emt 0:00:27]} 2. Nf3 {[%emt 0:00:20]} e6 {[%emt 0:00:30]} 3. c4 {[%emt 0:00:48]} Nc6 {[%emt 0:01:07]} 4. Nc3 {[%emt 0:00:32]} Nd4 {[%emt 0:00:57]} 5. d3 {[%emt 0:00:51]} Ne7 {[%emt 0:01:26]} 6. Be3 {[%emt 0:02:29]} Nec6 {[%emt 0:00:34]} 7. Nb5 {[%emt 0:00:34]} Nxb5 {[%emt 0:04:58]} 8. cxb5 {[%emt 0:00:10]} Qa5+ {[%emt 0:00:59]} 9. Qd2 {[%emt 0:00:09]} Qxb5 {[%emt 0:00:36]} 10. Rc1 {[%emt 0:02:00]} Qb6 {[%emt 0:09:57]} 11. a3 {[%emt 0:10:52]} Nd4 {[%emt 0:10:21]} 12. Bxd4 {[%emt 0:01:28]} cxd4 {[%emt 0:00:13]} 13. Rc4 {[%emt 0:00:41]} d5 {[%emt 0:01:29]} 14. Rc2 {[%emt 0:06:13]} Be7 {[%emt 0:02:08]} 15. Be2 {[%emt 0:01:24]} O-O {[%emt 0:03:51]} 16. O-O {[%emt 0:00:20]} Bd7 {[%emt 0:01:15]} 17. Rb1 {[%emt 0:05:59]} Ba4 {[%emt 0:02:30]} 18. Rcc1 {[%emt 0:05:00]} Rac8 {[%emt 0:02:17]} 19. b4 {[%emt 0:08:40]} h6 {[%emt 0:05:23]} 20. Qb2 {[%emt 0:11:25]} Rxc1+ {[%emt 0:14:41]} 21. Rxc1 {[%emt 0:05:42]} dxe4 {[%emt 0:00:13]} 22. dxe4 {[%emt 0:00:42]} Rd8 {[%emt 0:00:10]} 23. Bd3 {[%emt 0:01:06]} Bb5 {[%emt 0:06:00]} 24. Rd1 {[%emt 0:07:27]} Bc6 {[%emt 0:01:19]} 25. Qe2 {[%emt 0:04:41]} Ba4 {[%emt 0:03:50]} 26. Rc1 {[%emt 0:02:05]} a5 {[%emt 0:02:07]} 27. b5 {[%emt 0:05:19]} Bb3 {[%emt 0:07:20]} 28. Qb2 {[%emt 0:00:15]} a4 {[%emt 0:00:34]} 29. Nd2 {[%emt 0:01:26]} Ra8 {[%emt 0:00:26]} 30. g3 {[%emt 0:02:01]} g6 {[%emt 0:01:18]} 31. Ra1 {[%emt 0:03:09]} Rc8 {[%emt 0:00:28]} 32. Nxb3 {[%emt 0:01:40]} axb3 {[%emt 0:00:01]} 33. a4 {[%emt 0:00:56]} Rc3 {[%emt 0:02:47]} 34. a5 {[%emt 0:00:26]} Qc7 {[%emt 0:01:09]} 35. Bf1 {[%emt 0:01:03]} Bc5 {[%emt 0:01:35]} 36. Ra4 {[%emt 0:01:57]} d3 {[%emt 0:02:12]} 37. a6 {[%emt 0:01:32]} Rc2 {[%emt 0:03:26]} 38. Qxb3 {[%emt 0:01:29]} Rxf2 {[%emt 0:01:38]} 39. a7 {[%emt 0:00:59]} Rb2+ {[%emt 0:01:06]} 40. Kh1 {[%emt 0:00:07]} Rxb3 {[%emt 0:00:16]} 41. a8=Q+ {[%emt 0:00:08]} Kg7 {[%emt 0:00:23]} 42. Ra2 {[%emt 0:02:59]} Qe5 {[%emt 0:00:50]} 0-1

[Event "10th Floripa Open 2024"]
[Site "Florianopolis"]
[Date "2024.01.21"]
[Round "1.9"]
[White "Matsuura, Everaldo"]
[Black "Dias, Matheus Nunes"]
[Result "1-0"]
[ECO "C10"]
[WhiteElo "2410"]
[BlackElo "1684"]
[Annotator "RC"]
[PlyCount "47"]
[EventDate "2024.01.10"]
[EventType "swiss"]
[EventCountry "BRA"]
[SourceTitle "playchess.com"]
[Source "ChessBase"]
[SourceQuality "1"]
[TimeControl "5400+30"]

1. e4 {[%emt 0:00:30]} e6 {[%emt 0:01:09]} 2. d4 {[%emt 0:01:00]} d5 {[%emt 0:00:46]} 3. Nc3 {[%emt 0:00:31]} dxe4 {[%emt 0:01:13]} 4. Nxe4 {[%emt 0:00:15]} Nd7 {[%emt 0:02:38]} 5. Bd3 {[%emt 0:00:20]} Ngf6 {[%emt 0:04:18]} 6. Qe2 {[%emt 0:00:51]} Be7 {[%emt 0:01:40]} 7. Nf3 {[%emt 0:01:32]} O-O {[%emt 0:02:36]} 8. Bg5 {[%emt 0:03:05]} Re8 {[%emt 0:06:07]} 9. h4 {[%emt 0:01:34]} Nxe4 {[%emt 0:02:37]} 10. Qxe4 {[%emt 0:03:36]} Nf8 {[%emt 0:00:53]} 11. c4 {[%emt 0:02:54]} Bd7 {[%emt 0:04:11]} 12. O-O-O {[%emt 0:04:34]} Bc6 {[%emt 0:02:54]} 13. Qe3 {[%emt 0:02:54]} Bxf3 {[%emt 0:07:17]} 14. gxf3 {[%emt 0:01:59]} c5 {[%emt 0:03:10]} 15. dxc5 {[%emt 0:03:46]} Qa5 {[%emt 0:00:42]} 16. Bxe7 {[%emt 0:06:10]} Rxe7 {[%emt 0:00:16]} 17. Kb1 {[%emt 0:01:09]} Rc8 {[%emt 0:01:26]} 18. Rhg1 {[%emt 0:04:29]} Rxc5 {[%emt 0:02:30]} 19. Rg5 {[%emt 0:06:01]} Rxg5 {[%emt 0:06:27]} 20. hxg5 {[%emt 0:00:21]} Ng6 {[%emt 0:05:21]} 21. Bxg6 {[%emt 0:02:15]} hxg6 {[%emt 0:00:38]} 22. c5 {[%emt 0:01:57]} Qb5 {[%emt 0:03:28]} 23. Qe5 {[%emt 0:04:52]} Rd7 {[%emt 0:07:34]} 24. Qb8+ {[%emt 0:45:55]} 1-0

[Event "10th Floripa Open 2024"]
[Site "Florianopolis"]
[Date "2024.01.21"]
[Round "1.10"]
[White "Ramazzotte, Maicon Zilli"]
[Black "Rodriguez Vila, Andres"]
[Result "0-1"]
[ECO "C01"]
[WhiteElo "1682"]
[BlackElo "2407"]
[Annotator "RC"]
[PlyCount "92"]
[EventDate "2024.01.10"]
[EventType "swiss"]
[EventCountry "BRA"]
[SourceTitle "playchess.com"]
[Source "ChessBase"]
[SourceQuality "1"]
[TimeControl "5400+30"]

1. e4 {[%emt 0:00:55]} e6 {[%emt 0:00:06]} 2. d4 {[%emt 0:00:51]} d5 {[%emt 0:00:05]} 3. Nc3 {[%emt 0:00:05]} Bb4 {[%emt 0:00:05]} 4. exd5 {[%emt 0:01:27]} exd5 {[%emt 0:00:05]} 5. Nf3 {[%emt 0:01:30]} Ne7 {[%emt 0:00:10]} 6. Be2 {[%emt 0:01:04]} c6 {[%emt 0:00:08]} 7. O-O {[%emt 0:02:01]} O-O {[%emt 0:00:41]} 8. Bf4 {[%emt 0:02:29]} Ng6 {[%emt 0:00:08]} 9. Bg3 {[%emt 0:00:21]} f5 {[%emt 0:00:06]} 10. Bd3 {[%emt 0:02:22]} Nd7 {[%emt 0:00:49]} 11. Ne2 {[%emt 0:01:41]} f4 {[%emt 0:01:43]} 12. Bxg6 {[%emt 0:00:52]} fxg3 {[%emt 0:00:05]} 13. Bd3 {[%emt 0:00:28]} gxh2+ {[%emt 0:04:53]} 14. Kxh2 {[%emt 0:00:35]} Bd6+ {[%emt 0:01:17]} 15. Ng3 {[%emt 0:01:27]} Nf6 {[%emt 0:02:03]} 16. Kg1 {[%emt 0:01:20]} Ng4 {[%emt 0:01:23]} 17. c3 {[%emt 0:02:36]} Qf6 {[%emt 0:03:39]} 18. Qd2 {[%emt 0:02:24]} g6 {[%emt 0:02:22]} 19. Qg5 {[%emt 0:02:09]} Qg7 {[%emt 0:02:05]} 20. Rae1 {[%emt 0:01:10]} Bd7 {[%emt 0:01:46]} 21. Ne5 {[%emt 0:01:55]} Be7 {[%emt 0:01:22]} 22. Qd2 {[%emt 0:01:05]} Nxe5 {[%emt 0:00:08]} 23. dxe5 {[%emt 0:01:14]} Rae8 {[%emt 0:00:09]} 24. c4 {[%emt 0:03:42]} Be6 {[%emt 0:00:29]} 25. cxd5 {[%emt 0:07:28]} Bxd5 {[%emt 0:01:55]} 26. b3 {[%emt 0:01:16]} Rd8 {[%emt 0:01:05]} 27. Qe3 {[%emt 0:03:10]} b6 {[%emt 0:01:25]} 28. Bc4 {[%emt 0:01:16]} Bc5 {[%emt 0:02:39]} 29. Qg5 {[%emt 0:01:00]} Bxc4 {[%emt 0:04:13]} 30. bxc4 {[%emt 0:00:17]} Qe7 {[%emt 0:02:08]} 31. Ne4 {[%emt 0:05:15]} Rd4 {[%emt 0:04:10]} 32. Nf6+ {[%emt 0:00:27]} Kh8 {[%emt 0:00:54]} 33. Re3 {[%emt 0:11:11]} Rf7 {[%emt 0:00:41]} 34. Rh3 {[%emt 0:01:07]} Rg7 {[%emt 0:00:09]} 35. Kh1 {[%emt 0:01:25]} Qf7 {[%emt 0:02:39]} 36. f4 {[%emt 0:05:06]} Qxc4 {[%emt 0:01:46]} 37. Re1 {[%emt 0:01:37]} Rxf4 {[%emt 0:01:21]} 38. Kh2 {[%emt 0:04:55]} Rf1 {[%emt 0:04:50]} 39. Rxf1 {[%emt 0:02:39]} Qxf1 {[%emt 0:00:04]} 40. Qd2 {[%emt 0:00:52]} Qg1+ {[%emt 0:01:51]} 41. Kg3 {[%emt 0:00:04]} Qd4 {[%emt 0:02:55]} 42. Qxd4 {[%emt 0:00:10]} Bxd4 {[%emt 0:00:03]} 43. Kf4 {[%emt 0:00:08]} Re7 {[%emt 0:00:16]} 44. Ng4 {[%emt 0:00:27]} Kg7 {[%emt 0:00:47]} 45. Ke4 {[%emt 0:00:08]} c5 {[%emt 0:00:18]} 46. Kd5 {[%emt 0:00:59]} h5 {[%emt 0:51:34]} 0-1

[Event "10th Floripa Open 2024"]
[Site "Florianopolis"]
[Date "2024.01.22"]
[Round "2.1"]
[White "Silva, Jeferson"]
[Black "Tari, Aryan"]
[Result "0-1"]
[ECO "D38"]
[WhiteElo "1957"]
[BlackElo "2623"]
[Annotator "TA"]
[PlyCount "58"]
[EventDate "2024.01.10"]
[EventType "swiss"]
[EventCountry "BRA"]
[SourceTitle "playchess.com"]
[Source "ChessBase"]
[SourceQuality "1"]
[TimeControl "5400+30"]

{[%evp 22,58,10,10,13,20,23,0,0,0,0,0,0,6,0,-20,-24,-46,-37,-54,-49,-133,-142,-185,-189,-170,-172,-179,-164,-156,-166,-285,-292,-292,-233,-375,-353,-397,-405]} 1. d4 {[%emt 0:00:04]} d5 {[%emt 0:03:00]} 2. c4 {[%emt 0:00:16]} e6 {[%emt 0:00:05]} 3. Nf3 {[%emt 0:02:54]} Nf6 {[%emt 0:00:12]} 4. Nc3 {[%emt 0:00:45]} Nbd7 {[%emt 0:01:40]} 5. cxd5 {[%emt 0:01:00]} exd5 {[%emt 0:00:10]} 6. Bg5 {[%emt 0:01:01]} Bb4 {[%emt 0:00:32]} 7. e3 {[%emt 0:05:20]} c5 {[%emt 0:00:53]} 8. Be2 {[%emt 0:05:26]} Qa5 {[%emt 0:02:24]} 9. O-O {[%emt 0:05:46]} Bxc3 {[%emt 0:03:15]} 10. bxc3 {[%emt 0:00:08]} c4 {[%emt 0:01:01]} 11. Qc2 {[%emt 0:05:17]} Ne4 {[%emt 0:03:20]} 12. Rac1 {[%emt 0:00:40]} Nb6 {[%emt 0:08:32] A dynamic duo of knights. D38: Queen's Gambit Declined: Ragozin Defence (4 Nf3 Bb4).} 13. Bf4 {[%emt 0:04:34]} O-O {[%emt 0:08:56][%cal Bh8f8,Bf8e8,Be8e6,Be6b6,Bb6b2][%mdl 32]} 14. Nd2 {[%emt 0:05:56]} Bf5 {[%emt 0:06:19][%cal Oe4g3] [#] Hoping for ...Ng3! The position is equal.} 15. Nxe4 {[%emt 0:07:18]} Bxe4 {[%emt 0:00:06]} 16. Qd2 {[%emt 0:02:53]} Qa3 {[%emt 0:01:11] [#]} 17. f3 $146 {[%emt 0:17:39]} ({Predecessor:} 17. h4 Rfe8 18. h5 h6 19. f3 Bh7 20. Rf2 Rac8 21. g4 Qe7 22. Rg2 f6 23. Bd1 {1-0 Zhao,X (2490)-Koneru,H (2622) Nalchik FIDE GP (Women) 2010 (11)}) 17... Bg6 {[%emt 0:00:47]} 18. Rfe1 {[%emt 0:06:54] White is weak on the light squares} Rfe8 {[%emt 0:01:21]} 19. Bg3 {[%emt 0:04:44]} Re6 {[%emt 0:01:49]} 20. Bf2 {[%emt 0:05:44]} Rae8 {[%emt 0:00:31]} 21. Ra1 {[%emt 0:00:36]} ({White should play} 21. Bf1 $15) 21... Na4 $17 {[%emt 0:02:04]} 22. Rec1 {[%emt 0:01:52]} Rb6 {[%emt 0:02:33]} 23. e4 {[%emt 0:03:36]} Rb2 {[%emt 0:02:09]} 24. Qe3 {[%emt 0:01:13]} b5 {[%emt 0:01:38][%cal Rd5e4]} ({Stronger than} 24... dxe4 25. Bxc4 Nb6 26. Bb3 $11) 25. Bd1 {[%emt 0:05:35]} Nb6 {[%emt 0:03:55][%cal Rd5e4] Black has more active pieces. The white rooks are badly placed.} 26. Rc2 {[%emt 0:01:53] [#]} (26. e5 {was the only chance.}) 26... Rxc2 $1 $19 {[%emt 0:04:02]} (26... dxe4 27. Qc1 Na4 28. Re2 $11) 27. Bxc2 {[%emt 0:00:05]} Qb2 {[%emt 0:00:16]} 28. Rc1 {[%emt 0:00:45]} (28. Qc1 $142 Qxc3 29. a4) 28... dxe4 {[%emt 0:00:04][%cal Ob6d5][%mdl 64] Strongly threatening ...Nd5! Remove Defender} 29. fxe4 {[%emt 0:03:24]} Nd5 {[%emt 0:00:04][%mdl 64] Pin, Double Attack.   Weighted Error Value: White=0.29 (precise) /Black=0.03 (flawless)} ({And not} 29... Qxa2 30. Be1 $17) 0-1

[Event "10th Floripa Open 2024"]
[Site "Florianopolis"]
[Date "2024.01.22"]
[Round "2.2"]
[White "Oliveira, Tiago Batista"]
[Black "El Debs, Felipe de Cresce"]
[Result "0-1"]
[ECO "E04"]
[WhiteElo "1953"]
[BlackElo "2527"]
[Annotator "TA"]
[PlyCount "70"]
[EventDate "2024.01.10"]
[EventType "swiss"]
[EventCountry "BRA"]
[SourceTitle "playchess.com"]
[Source "ChessBase"]
[SourceQuality "1"]
[TimeControl "5400+30"]

{[%evp 11,70,11,4,-10,-13,-36,-38,-64,-68,-80,-79,-145,-144,-138,-137,-200,-194,-185,-185,-265,-253,-266,-258,-265,-243,-237,-242,-312,-305,-308,-312,-305,-271,-287,-303,-335,-237,-385,-391,-509,-492,-560,-539,-570,-560,-557,-557,-570,-578,-541,-386,-968,-952,-29982,-29967,-29996,-29994,-29994,-29995,-29995,-29996]} 1. d4 {[%emt 0:00:53]} Nf6 {[%emt 0:00:08]} 2. c4 {[%emt 0:00:21]} e6 {[%emt 0:00:08]} 3. g3 {[%emt 0:00:39]} d5 {[%emt 0:00:09]} 4. Nf3 {[%emt 0:00:24]} dxc4 {[%emt 0:00:15]} 5. Bg2 {[%emt 0:02:17]} Nc6 {[%emt 0:00:12]} 6. O-O {[%emt 0:01:18]} Rb8 {[%emt 0:00:27]} 7. Bg5 {[%emt 0:10:10]} Be7 {[%emt 0:02:22]} 8. Nc3 {[%emt 0:01:56]} (8. Qc1 $5 {[%cal Rc1c4]}) 8... b5 {[%emt 0:05:51] Wards off Qa4} 9. Rc1 {[%emt 0:17:06] Black is slightly better.} O-O {[%emt 0:01:37]} 10. e4 {[%emt 0:12:39]} a6 {[%emt 0:09:25]} 11. Bxf6 {[%emt 0:10:08]} ({Better is} 11. h4) 11... Bxf6 $17 {[%emt 0:00:53]} 12. e5 {[%emt 0:00:11]} Be7 {[%emt 0:00:15]} 13. a3 {[%emt 0:00:43]} (13. Qe2 $17 {was called for.}) 13... Bb7 $19 {[%emt 0:01:19]} 14. Re1 {[%emt 0:00:17]} Na5 {[%emt 0:01:31]} 15. Ne4 {[%emt 0:05:13]} (15. Qe2 $142) 15... Nb3 {[%emt 0:01:47]} 16. Rb1 {[%emt 0:04:19]} Qd7 {[%emt 0:04:04]} 17. Qc2 {[%emt 0:01:52]} h6 {[%emt 0:04:48][%cal Bh7h6,Bh6g5][%mdl 32]} 18. Rbd1 {[%emt 0:00:51]} Rfd8 {[%emt 0:00:14]} 19. g4 {[%emt 0:04:01]} Bxe4 {[%emt 0:03:38]} 20. Qxe4 {[%emt 0:03:43]} c5 {[%emt 0:00:29][%cal Rc5d4]} 21. g5 {[%emt 0:09:46]} Bxg5 {[%emt 0:01:01]} (21... Nxd4 22. gxh6 g6 23. h4 $17) 22. Nxg5 {[%emt 0:00:43]} hxg5 {[%emt 0:00:03]} 23. Qg4 {[%emt 0:00:35]} Qe7 {[%emt 0:01:59]} (23... Nxd4 $2 {loses.} 24. Qxg5 Re8 25. h4 $19) 24. dxc5 {[%emt 0:02:06]} (24. d5 $142 exd5 25. e6) 24... Nxc5 {[%emt 0:00:28][%cal Bb3c5,Bc5d3,Bd3e5,Be5g4,Bg4e3][%mdl 32]} 25. Rxd8+ {[%emt 0:00:31]} Rxd8 {[%emt 0:00:06]} (25... Qxd8 $2 {is the wrong capture.} 26. Rd1 Qe7 27. Rd6 $19) 26. Re3 {[%emt 0:01:35]} Rd3 {[%emt 0:01:25]} 27. Rxd3 {[%emt 0:01:26]} Nxd3 {[%emt 0:00:13][%mdl 4096] Endgame KQB-KQN} (27... cxd3 $2 {too greedy.} 28. Qb4 $19) 28. Qd4 {[%emt 0:00:11]} Qc7 {[%emt 0:02:47]} 29. Be4 {[%emt 0:00:58]} Nxe5 {[%emt 0:00:23]} 30. Qe3 {[%emt 0:01:06]} Ng4 {[%emt 0:02:36]} 31. Qh3 {[%emt 0:00:11] [#]} (31. Qg3 Ne5 32. Qxg5) 31... Qf4 {[%emt 0:00:49][%csl LRe4,LRf2]} 32. Qh7+ {[%emt 0:01:42]} Kf8 {[%emt 0:00:05] Black mates.} 33. f3 {[%emt 0:00:59]} Qe3+ {[%emt 0:01:23]} 34. Kg2 {[%emt 0:00:03]} Qf2+ {[%emt 0:00:09]} 35. Kh3 {[%emt 0:00:12]} Ne3 {[%emt 0:00:23] White got outplayed after the opening.   Weighted Error Value: White=0.73/Black=0.12 (very precise)} 0-1

[Event "10th Floripa Open 2024"]
[Site "Florianopolis"]
[Date "2024.01.22"]
[Round "2.3"]
[White "Cuenca Jimenez, Jose Fernando"]
[Black "Andrade, Roberto Luiz Costa"]
[Result "1-0"]
[ECO "B39"]
[WhiteElo "2514"]
[BlackElo "1962"]
[Annotator "TA"]
[PlyCount "71"]
[EventDate "2024.01.10"]
[EventType "swiss"]
[EventCountry "BRA"]
[SourceTitle "playchess.com"]
[Source "ChessBase"]
[SourceQuality "1"]
[TimeControl "5400+30"]

{[%evp 18,71,47,43,62,62,71,78,85,62,81,74,72,61,82,80,122,47,52,57,70,52,68,94,131,110,166,155,218,211,207,214,208,135,268,273,244,265,259,237,275,256,239,247,351,269,914,903,29997,0,289,227,225,228,227,-373]} 1. c4 {[%emt 0:00:23]} c5 {[%emt 0:00:21]} 2. Nf3 {[%emt 0:00:33]} Nc6 {[%emt 0:00:51]} 3. d4 {[%emt 0:00:06]} cxd4 {[%emt 0:01:05]} 4. Nxd4 {[%emt 0:00:06]} g6 {[%emt 0:01:22]} 5. e4 {[%emt 0:00:07]} Bg7 {[%emt 0:00:15]} 6. Be3 {[%emt 0:00:07]} Nf6 {[%emt 0:00:41]} 7. Nc3 {[%emt 0:00:07]} Ng4 {[%emt 0:07:38]} 8. Qxg4 {[%emt 0:00:34]} Nxd4 {[%emt 0:00:08]} 9. Qd1 {[%emt 0:00:14]} Nc6 {[%emt 0:00:47]} 10. Rc1 {[%emt 0:02:35]} b6 {[%emt 0:03:17]} 11. Be2 {[%emt 0:00:39] White is more active.} d6 {[%emt 0:02:16]} 12. O-O {[%emt 0:00:51]} O-O {[%emt 0:02:54] White is better.} 13. a3 {[%emt 0:00:45]} Be6 {[%emt 0:04:07]} 14. f4 {[%emt 0:01:20]} Na5 {[%emt 0:02:08]} 15. b3 {[%emt 0:00:38]} Rc8 {[%emt 0:03:34]} 16. Nb5 {[%emt 0:09:46]} a6 {[%emt 0:07:00]} 17. Nd4 {[%emt 0:00:04]} ({Better is} 17. Nc3 $1 $16) 17... Bd7 $14 {[%emt 0:00:48][%cal Ob6b5]} 18. b4 {[%emt 0:03:59]} Nc6 {[%emt 0:00:49]} 19. Nc2 {[%emt 0:00:08]} Nb8 {[%emt 0:04:45]} 20. b5 $1 {[%emt 0:07:54]} axb5 {[%emt 0:07:11]} 21. cxb5 {[%emt 0:02:41]} Rc3 {[%emt 0:04:41] [#]} (21... Be6 $16) 22. Qd2 $1 $18 {[%emt 0:00:56]} Qc7 {[%emt 0:01:47]} (22... Be6 $16) 23. Nb4 {[%emt 0:03:33] And now Nd5 would win.} Be6 {[%emt 0:04:01]} 24. f5 {[%emt 0:04:23]} Bb3 {[%emt 0:02:58]} 25. Nc6 {[%emt 0:02:08]} Rxc1 {[%emt 0:02:22]} (25... Rc5 $16) 26. Rxc1 {[%emt 0:01:27]} (26. Qxc1 Nxc6 27. Qxc6 (27. bxc6 Ba4 $15) 27... Qa7 $14) 26... Nxc6 {[%emt 0:06:45]} 27. Rxc6 {[%emt 0:01:46]} (27. bxc6 Ba4 28. Qb4 b5 29. Bxb5 Bxb5 30. Qxb5 gxf5 31. exf5 (31. Qxf5 e6 $18) 31... Be5) 27... Qa7 {[%emt 0:00:31]} 28. Qb4 {[%emt 0:00:39]} (28. Bxb6 Qxa3 29. Be3 Qa4 $14) ({Don't take} 28. Rxb6 $6 Qa4 $16) 28... Qa4 {[%emt 0:02:22]} 29. Qxa4 {[%emt 0:00:19]} (29. Bxb6 Qxb4 30. axb4 d5 31. exd5 Bxd5 $16) 29... Bxa4 {[%emt 0:00:11]} 30. Rxb6 {[%emt 0:02:05]} ({Much less strong is} 30. Bxb6 $6 Rb8) 30... Ra8 {[%emt 0:03:18]} (30... Bc2 $142 31. Rb7 e6 32. fxe6 fxe6) 31. Bc4 {[%emt 0:02:46] Ra6 is the strong threat.} ({Weaker is} 31. Ra6 Rxa6 32. bxa6 Bc6 $18) 31... Bb2 $2 {[%emt 0:03:48]} (31... Rc8 32. Ra6 Bc2) 32. Ra6 {[%emt 0:00:53]} Bg7 {[%emt 0:21:49]} 33. Rb6 $2 (33. Rxa8+ {mates} Bf8 34. Bh6 gxf5 35. Rxf8#) 33... gxf5 $2 {[%emt 0:00:30][%mdl 8192]} (33... Bb2 $1 $11) 34. Ra6 {[%emt 0:52:58]} Rxa6 35. bxa6 e6 {[#]} 36. Bd5 $4 {[%emt 0:01:00][%mdl 40960] Weighted Error Value: White=0.40/Black=0.59. Loss on time!?} 1-0

[Event "10th Floripa Open 2024"]
[Site "Florianopolis"]
[Date "2024.01.22"]
[Round "2.4"]
[White "Lutz, Igor Oscar"]
[Black "Salinas Herrera, Pablo"]
[Result "0-1"]
[ECO "D11"]
[WhiteElo "1947"]
[BlackElo "2477"]
[Annotator "RC"]
[PlyCount "64"]
[EventDate "2024.01.10"]
[EventType "swiss"]
[EventCountry "BRA"]
[SourceTitle "playchess.com"]
[Source "ChessBase"]
[SourceQuality "1"]
[TimeControl "5400+30"]

1. d4 {[%emt 0:00:24]} d5 {[%emt 0:03:24]} 2. c4 {[%emt 0:00:09]} c6 {[%emt 0:00:05]} 3. Nf3 {[%emt 0:01:39]} Nf6 {[%emt 0:00:05]} 4. g3 {[%emt 0:00:07]} Bf5 {[%emt 0:01:47]} 5. Qb3 {[%emt 0:02:19]} Qb6 {[%emt 0:02:24]} 6. c5 {[%emt 0:00:23]} Qxb3 {[%emt 0:00:13]} 7. axb3 {[%emt 0:00:30]} h6 {[%emt 0:02:08]} 8. Nc3 {[%emt 0:00:23]} e6 {[%emt 0:03:11]} 9. b4 {[%emt 0:03:43]} Be7 {[%emt 0:04:32]} 10. b5 {[%emt 0:05:50]} O-O {[%emt 0:02:08]} 11. Bg2 {[%emt 0:02:32]} cxb5 {[%emt 0:00:39]} 12. Nxb5 {[%emt 0:00:27]} Nc6 {[%emt 0:00:07]} 13. Bf4 {[%emt 0:02:48]} Be4 {[%emt 0:01:42]} 14. Ra4 {[%emt 0:16:55]} Nd7 {[%emt 0:16:49]} 15. Bd6 {[%emt 0:05:06]} a6 {[%emt 0:01:18]} 16. Nc7 {[%emt 0:08:16]} Rac8 {[%emt 0:00:21]} 17. O-O {[%emt 0:02:28]} Bxd6 {[%emt 0:00:36]} 18. cxd6 {[%emt 0:00:10]} Bxf3 {[%emt 0:00:14]} 19. Bxf3 {[%emt 0:03:29]} Nb6 {[%emt 0:00:06]} 20. Ra2 {[%emt 0:01:43]} Nxd4 {[%emt 0:02:00]} 21. Bg4 {[%emt 0:02:51]} Rfd8 {[%emt 0:00:06]} 22. e3 {[%emt 0:02:01]} Nf5 {[%emt 0:03:30]} 23. Nxd5 {[%emt 0:02:45]} Nxd5 {[%emt 0:00:04]} 24. e4 {[%emt 0:00:16]} Nf6 {[%emt 0:00:11]} 25. Bxf5 {[%emt 0:00:48]} exf5 {[%emt 0:00:05]} 26. e5 {[%emt 0:00:12]} Nd7 {[%emt 0:00:10]} 27. Re1 {[%emt 0:02:10]} Rc5 {[%emt 0:00:36]} 28. f4 {[%emt 0:00:32]} Rdc8 {[%emt 0:00:04]} 29. b4 {[%emt 0:02:57]} Rb5 {[%emt 0:00:06]} 30. g4 {[%emt 0:01:56]} fxg4 {[%emt 0:01:14]} 31. Re4 {[%emt 0:00:10]} g5 {[%emt 0:00:19]} 32. Rg2 {[%emt 0:01:31]} Rc1+ {[%emt 0:00:08]} 0-1

[Event "10th Floripa Open 2024"]
[Site "Florianopolis"]
[Date "2024.01.22"]
[Round "2.5"]
[White "Galego, Luis"]
[Black "Benitez, Andres"]
[Result "1-0"]
[ECO "B40"]
[WhiteElo "2468"]
[BlackElo "1956"]
[Annotator "RC"]
[PlyCount "53"]
[EventDate "2024.01.10"]
[EventType "swiss"]
[EventCountry "BRA"]
[SourceTitle "playchess.com"]
[Source "ChessBase"]
[SourceQuality "1"]
[TimeControl "5400+30"]

1. e4 {[%emt 0:02:35]} c5 {[%emt 0:00:18]} 2. Nf3 {[%emt 0:00:06]} e6 {[%emt 0:00:18]} 3. Nc3 {[%emt 0:00:35]} a6 {[%emt 0:00:37]} 4. g3 {[%emt 0:00:15]} b5 {[%emt 0:00:45]} 5. Bg2 {[%emt 0:00:10]} Bb7 {[%emt 0:00:27]} 6. d3 {[%emt 0:00:05]} d6 {[%emt 0:00:08]} 7. O-O {[%emt 0:00:23]} Nf6 {[%emt 0:01:01]} 8. a3 {[%emt 0:01:45]} Be7 {[%emt 0:01:10]} 9. Ne1 {[%emt 0:02:07]} Nc6 {[%emt 0:04:03]} 10. f4 {[%emt 0:00:34]} Qc7 {[%emt 0:01:30]} 11. h3 {[%emt 0:04:39]} O-O {[%emt 0:02:49]} 12. g4 {[%emt 0:01:43]} b4 {[%emt 0:04:19]} 13. axb4 {[%emt 0:01:23]} cxb4 {[%emt 0:01:01]} 14. Na4 {[%emt 0:01:09]} e5 {[%emt 0:05:30]} 15. g5 {[%emt 0:02:11]} Nd7 {[%emt 0:01:56]} 16. f5 {[%emt 0:04:38]} Rfc8 {[%emt 0:16:56]} 17. Be3 {[%emt 0:12:21]} Nd4 {[%emt 0:11:57]} 18. c3 {[%emt 0:02:42]} Nc6 {[%emt 0:07:19]} 19. h4 {[%emt 0:13:42]} Nc5 {[%emt 0:06:12]} 20. f6 {[%emt 0:02:12]} Bf8 {[%emt 0:11:58]} 21. fxg7 {[%emt 0:00:14]} Kxg7 {[%emt 0:02:10]} 22. Qh5 {[%emt 0:05:11]} Re8 {[%emt 0:02:14]} 23. Nb6 {[%emt 0:01:38]} f5 {[%emt 0:10:58]} 24. Nxa8 {[%emt 0:02:26]} Rxa8 {[%emt 0:01:02]} 25. exf5 {[%emt 0:00:40]} e4 {[%emt 0:02:17]} 26. g6 {[%emt 0:02:26]} Kg8 {[%emt 0:02:47]} 27. f6 {[%emt 0:00:19]} 1-0